fUSD/lending_fUSD_20260203
["ID","MTS","AMOUNT","RATE_DAILY","PERIOD"]
[404414912,1770119442395,-346.92554585,0.00017216,2]
[404414913,1770119442405,-2708.44377414,0.00017221,2]
[404414914,1770119442415,-2058.94626904,0.00017221,2]
[404414915,1770119442425,-150.0,0.00017243,7]
[404414916,1770119442435,-215.837754,0.00017243,7]
[404414917,1770119442444,-281.675508,0.00017243,7]
[404414918,1770119442455,-347.513262,0.00017243,7]
[404414919,1770119442465,-413.351017,0.00017243,7]
[404414920,1770119442475,-479.188771,0.00017243,7]
[404414921,1770119442486,-545.026525,0.00017243,7]
[404414922,1770119442497,-610.86428,0.00017243,7]
[404414923,1770119442507,-676.702034,0.00017243,7]
[404414924,1770119442516,-742.539788,0.00017243,7]
[404414925,1770119442526,-150.0,0.00017243,7]
[404414926,1770119442535,-194.050832,0.00017243,7]
[404414927,1770119442544,-238.101664,0.00017243,7]
[404414928,1770119442554,-282.152497,0.00017243,7]
[404414929,1770119442563,-326.203329,0.00017243,7]
[404414930,1770119442573,-370.254162,0.00017243,7]
[404414931,1770119442583,-414.304994,0.00017243,7]
[404414932,1770119442592,-458.355826,0.00017243,7]
[404414933,1770119442601,-502.406659,0.00017243,7]
[404414934,1770119442610,-546.457491,0.00017243,7]
[404414935,1770119442620,-1000.0,0.0001726,2]
[404414936,1770119442628,-564.46,0.00017273,2]
[404414937,1770119442640,-564.46,0.00017273,2]
[404414938,1770119442650,-564.46,0.00017273,2]
[404414939,1770119442659,-564.46,0.00017273,2]
[404414940,1770119442669,-564.46,0.00017273,2]
[404414941,1770119442678,-564.46,0.00017273,2]
[404414942,1770119442687,-564.46,0.00017273,2]
[404414943,1770119442696,-564.46,0.00017273,2]
[404414944,1770119442708,-564.46,0.00017273,2]
[404414945,1770119442717,-564.46,0.00017273,2]
[404414946,1770119442729,-564.46,0.00017273,2]
[404414947,1770119442741,-564.46,0.00017273,2]
[404414948,1770119442753,-564.46,0.00017273,2]
[404414949,1770119442762,-564.46,0.00017273,2]
[404414950,1770119442772,-564.46,0.00017273,2]
[404414951,1770119442783,-564.46,0.00017273,2]
[404414952,1770119442791,-564.46,0.00017273,2]
[404414953,1770119442801,-564.46,0.00017273,2]
[404414954,1770119442811,-564.46,0.00017273,2]
[404414955,1770119442821,-564.46,0.00017273,2]
[404414956,1770119442830,-564.46,0.00017273,2]
[404414957,1770119442842,-564.46,0.00017273,2]
[404414958,1770119442852,-564.46,0.00017273,2]
[404414959,1770119442861,-564.46,0.00017273,2]
[404414960,1770119442870,-564.46,0.00017273,2]
[404414961,1770119442879,-564.46,0.00017273,2]
[404414962,1770119442888,-564.46,0.00017273,2]
[404414963,1770119442898,-564.46,0.00017273,2]
[404414964,1770119442908,-564.46,0.00017273,2]
[404414965,1770119442918,-564.46,0.00017273,2]
[404414966,1770119442927,-564.46,0.00017273,2]
[404414967,1770119442936,-564.46,0.00017273,2]
[404414968,1770119442947,-564.46,0.00017273,2]
[404414969,1770119442956,-564.46,0.00017273,2]
[404414970,1770119442966,-564.46,0.00017273,2]
[404414971,1770119442974,-757.35,0.00017273,2]
[404414972,1770119442983,-6000.0,0.000173,2]
[404414973,1770119442992,-1500.0,0.000173,2]
[404414974,1770119443001,-2708.44377408,0.00017334,2]
[404414975,1770119443010,-50996.65745629,0.00017339,2]
[404414976,1770119443019,-150.0,0.00017368,2]
[404414977,1770119443028,-150.0,0.00017368,2]
[404414978,1770119443037,-300.0,0.00017368,2]
[404414979,1770119443046,-307.67,0.00017368,2]
[404414980,1770119443055,-616.0,0.00017373,2]
[404414981,1770119443066,-3481.0,0.00017373,2]
[404414982,1770119443075,-1410.0,0.00017373,2]
[404414983,1770119443085,-1335.0,0.00017373,2]
[404414984,1770119443096,-1271.0,0.00017373,2]
[404414985,1770119443106,-150.0,0.00017373,2]
[404414986,1770119443115,-917.0,0.00017373,2]
[404414987,1770119443125,-1205.0,0.00017373,2]
[404414988,1770119443136,-6580.0,0.00017373,2]
[404414989,1770119443147,-1316.0,0.00017373,2]
[404414990,1770119443157,-2471.026,0.00017373,2]
[404414991,1770119443166,-568.0,0.00017373,2]
[404414992,1770119443175,-917.66,0.00017376,2]
[404414993,1770119443184,-2058.94626903,0.00017391,2]
[404414994,1770119443193,-6000.0,0.000174,2]
[404414995,1770119443203,-1081.65532517,0.00017402,2]
[404414996,1770119443213,-2708.44377408,0.00017447,2]
[404414997,1770119443222,-747.8093786,0.00017452,2]
[404414998,1770119443231,-1500.0,0.00017452,7]
[404414999,1770119443241,-200.0,0.00017453,2]
[404415000,1770119443250,-10000.0,0.000175,2]
[404415001,1770119443259,-600.0,0.000175,6]
[404415002,1770119443268,-205.2,0.00017516,2]
[404415003,1770119443277,-200.0,0.0001752,2]
[404415004,1770119443286,-1000.0,0.00017534,2]
[404415005,1770119443295,-2708.44377408,0.00017561,2]
[404415006,1770119443305,-2058.94626903,0.00017561,2]
[404415008,1770119443314,-1037.2099588,0.00017577,2]
[404415010,1770119443323,-2737.21349155,0.00017577,2]
[404415012,1770119443332,-4828.76905137,0.00017577,2]
[404415013,1770119443341,-7223.54971114,0.00017577,2]
[404415015,1770119443350,-9773.7156,0.00017577,2]
[404415017,1770119443359,-225.18697532,0.00017591,2]
[404415019,1770119443368,-6000.0,0.000176,2]
[404415020,1770119443378,-1500.0,0.000176,2]
[404415022,1770119443387,-600.0,0.000176,6]
[404415024,1770119443396,-1081.65532517,0.00017601,2]
[404415026,1770119443405,-293.9372811,0.0001764,2]
[404415028,1770119443416,-2708.44377408,0.00017674,2]
[404415030,1770119443426,-6000.0,0.000177,2]
[404415032,1770119443435,-600.0,0.000177,6]
[404415034,1770119443444,-150.0,0.00017723,2]
[404415036,1770119443454,-800.0,0.00017726,7]
[404415038,1770119443463,-2058.94626903,0.0001773,2]
[404415040,1770119443473,-200.0,0.00017738,2]
[404415042,1770119443481,-1000.0,0.0001774,2]
[404415044,1770119443490,-5888.0,0.00017741,2]
[404415045,1770119443499,-1000.0,0.00017747,2]
[404415046,1770119443509,-150.0,0.00017763,2]
[404415048,1770119443519,-1000.0,0.00017785,2]
[404415050,1770119443528,-2708.44377408,0.00017787,2]
[404415051,1770119443537,-150.0,0.0001779,2]
[404415052,1770119443546,-6000.0,0.000178,2]
[404415053,1770119443555,-1081.65532517,0.000178,2]
[404415054,1770119443564,-1500.0,0.000178,2]
[404415055,1770119443574,-50996.65745629,0.000178,2]
[404415056,1770119443583,-600.0,0.000178,6]
[404415057,1770119443592,-1000.0,0.00017808,2]
[404415058,1770119443601,-1000.0,0.00017836,2]
[404415059,1770119443611,-5888.0,0.00017845,2]
[404415060,1770119443620,-1000.0,0.00017847,2]
[404415061,1770119443629,-1000.0,0.00017847,2]
[404415062,1770119443639,-1000.0,0.00017847,2]
[404415063,1770119443650,-1000.0,0.00017847,2]
[404415064,1770119443660,-1000.0,0.00017847,2]
[404415065,1770119443670,-1000.0,0.00017847,2]
[404415066,1770119443679,-150.0,0.00017852,2]
[404415067,1770119443688,-983.42551089,0.00017853,2]
[404415068,1770119443697,-150.0,0.00017855,2]
[404415069,1770119443708,-1000.0,0.00017855,2]
[404415070,1770119443720,-200.0,0.00017855,2]
[404415071,1770119443729,-200.0,0.00017856,2]
[404415072,1770119443739,-500.0,0.0001789,2]
[404415073,1770119443748,-25000.0,0.00017891,3]
[404415074,1770119443759,-1000.0,0.00017895,2]
[404415075,1770119443768,-1000000.0,0.000179,2]
[404415076,1770119443777,-10140.7131,0.000179,2]
[404415077,1770119443787,-33292.3487,0.000179,2]
[404415078,1770119443796,-1000.0,0.000179,2]
[404415079,1770119443806,-5000.0,0.000179,2]
[404415080,1770119443815,-2708.44377408,0.000179,2]
[404415081,1770119443824,-2058.94626903,0.000179,2]
[404415082,1770119443833,-6000.0,0.000179,2]
[404415083,1770119443843,-21759.06757991,0.000179,3]
[404415084,1770119444144,-743.40181531,0.000179,3]
[404415085,1770119444155,-390.62,0.000179,3]
[404415089,1770119444393,-500.0,0.00014603,2]
[404415090,1770119444403,-17.00211755,0.000179,3]
[404415091,1770119444717,-2089.90848723,0.000179,3]
[404415092,1770119444727,-160.0,0.000179,3]
[404415093,1770119444739,-1570.0,0.000179,6]
[404415094,1770119444750,-25000.0,0.000179,3]
[404415095,1770119444761,-1223.52848545,0.000179,2]
[404415096,1770119444770,-500.0,0.000179,2]
[404415097,1770119444780,-500.0,0.000179,2]
[404415098,1770119444789,-500.0,0.000179,2]
[404415099,1770119444799,-500.0,0.000179,2]
[404415100,1770119444809,-500.0,0.000179,2]
[404415101,1770119444818,-500.0,0.000179,2]
[404415102,1770119444827,-500.0,0.000179,2]
[404415103,1770119444836,-500.0,0.000179,2]
[404415104,1770119444845,-500.0,0.000179,2]
[404415105,1770119444855,-500.0,0.000179,2]
[404415106,1770119444864,-500.0,0.000179,2]
[404415107,1770119444873,-500.0,0.000179,2]
[404415108,1770119444882,-500.0,0.000179,2]
[404415109,1770119444892,-500.0,0.000179,2]
[404415110,1770119444901,-500.0,0.000179,2]
[404415111,1770119444912,-500.0,0.000179,2]
[404415112,1770119444921,-329.15243557,0.000179,2]
[404415113,1770119444930,-18389.0,0.000179,2]
[404415114,1770119444941,-150.0,0.00017928,2]
[404415115,1770119444952,-150.0,0.00017949,2]
[404415116,1770119444963,-1000.0,0.00017952,2]
[404415117,1770119444974,-1000.0,0.00017959,2]
[404415118,1770119444984,-150.0,0.00017969,2]
[404415121,1770119444999,-400.7491143,0.0001797,2]
[404415122,1770119445010,-5177.5,0.0001797,2]
[404415123,1770119445021,-1000.0,0.00017978,2]
[404415124,1770119445033,-157.95285948,0.0001798,2]
[404415125,1770119445042,-500.0,0.00017982,2]
[404415126,1770119445051,-17052.0679979,0.00017985,2]
[404415127,1770119445061,-151.0,0.00017997,2]
[404415128,1770119445071,-300.0,0.00017999,2]
[404415129,1770119445080,-1960.0961735,0.00017999,2]
[404415130,1770119445090,-300.0,0.00017999,2]
[404415131,1770119445100,-300.0,0.00017999,2]
[404415132,1770119445110,-7341921.50573162,0.00018,2]
[404415133,1770119445496,369.77389116,0.000143,120]
[404415134,1770119445519,-500.0,0.00016493,2]
[404415135,1770119445528,-801892.97418219,0.00018,2]
[404415136,1770119445616,-4878.11426883,0.00018,2]
[404415137,1770119445934,-974.27079698,0.00018,2]
[404415138,1770119445945,-891.93999999,0.00018,2]
[404415139,1770119445967,-999.4796696,0.00018,2]
[404415140,1770119445987,-310.25882034,0.00018,2]
[404415141,1770119445998,-2427.54639702,0.00018,2]
[404415234,1770120631987,-250.0,0.00010024,2]
[404415235,1770120631996,-247.72,0.00010024,2]
[404415236,1770120632006,-291.21552636,0.00010099,2]
[404415237,1770120632015,-151.0,0.00010923,2]
[404415238,1770120632026,-259.22496581,0.00010924,2]
[404415239,1770120632042,-40.77503419,0.00010924,2]
[404415240,1770120632052,-150.0,0.00010924,2]
[404415241,1770120632062,-300.0,0.00010924,2]
[404415242,1770120632071,-300.0,0.00010924,2]
[404415243,1770120632081,-1200.0,0.00010924,2]
[404415244,1770120632090,-947.40337248,0.00010925,2]
[404415245,1770120632100,-68.98156113,0.00010925,2]
[404415246,1770120632114,-1131.01843887,0.00010925,2]
[404415247,1770120632124,-178.31200744,0.00010925,2]
[404415248,1770120632134,-947.10973134,0.00010925,2]
[404415249,1770120632146,-716.93242001,0.00010925,2]
[404415250,1770120632156,-1010.47198093,0.00010925,2]
[404415251,1770120632167,-1355.09155744,0.00010925,2]
[404415252,1770120632179,-544.02,0.00010925,2]
[404415253,1770120632190,-1171.15387376,0.00010925,2]
[404415254,1770120632202,-729.05658628,0.00010925,2]
[404415255,1770120632213,-559.2491887,0.00010925,2]
[404415256,1770120632224,-437.436765,0.00010925,2]
[404415257,1770120638015,-15454.24511204,0.00010925,2]
[404415258,1770120638025,-1223.52848547,0.00010925,2]
[404415259,1770120638035,-445.78256626,0.00010925,2]
[404415260,1770120638045,-314.01562276,0.00010925,2]
[404415261,1770120638055,-500.0,0.00010925,2]
[404415262,1770120638065,-500.0,0.00010925,2]
[404415263,1770120638075,-500.0,0.00010925,2]
[404415264,1770120638085,-209.63331239,0.00010925,2]
[404415265,1770120638094,-500.0,0.00010925,2]
[404415266,1770120638106,-500.0,0.00010925,2]
[404415267,1770120638117,-500.0,0.00010925,2]
[404415268,1770120638126,-500.0,0.00010925,2]
[404415269,1770120638136,-500.0,0.00010925,2]
[404415270,1770120638147,-500.0,0.00010925,2]
[404415271,1770120638156,-500.0,0.00010925,2]
[404415272,1770120638166,-501.69409289,0.00010925,2]
[404415273,1770120638176,-500.0,0.00010925,2]
[404415274,1770120638186,-500.0,0.00010925,2]
[404415275,1770120638195,-500.0,0.00010925,2]
[404415276,1770120638204,-500.0,0.00010925,2]
[404415277,1770120638214,-500.0,0.00010925,2]
[404415278,1770120638224,-500.0,0.00010925,2]
[404415279,1770120638234,-500.0,0.00010925,2]
[404415280,1770120638244,-500.0,0.00010925,2]
[404415281,1770120638254,-515.24683598,0.00010925,2]
[404415283,1770120638264,-500.0,0.00010925,2]
[404415285,1770120638273,-500.0,0.00010925,2]
[404415286,1770120638283,-3500000.0,0.00010926,2]
[404415288,1770120638293,-150.29331046,0.00011026,2]
[404415290,1770120638302,-195.0,0.00011026,2]
[404415292,1770120638312,-250.0,0.00011026,2]
[404415294,1770120638322,-195.0,0.00011026,2]
[404415296,1770120638332,-195.0,0.00011026,2]
[404415298,1770120638341,-500.0,0.00011026,2]
[404415300,1770120638353,-5000.0,0.00011026,2]
[404415302,1770120638363,-5408.27662591,0.00011099,2]
[404415304,1770120638372,-5408.27662586,0.00011273,2]
[404415306,1770120638382,-5408.27662586,0.00011622,2]
[404415308,1770120638392,-1600.0,0.00011884,2]
[404415310,1770120638401,-2786.87,0.00011884,2]
[404415312,1770120638410,-947.40337248,0.00011918,2]
[404415314,1770120638419,-1664.0421513,0.00011921,2]
[404415316,1770120638429,-255.0,0.00011962,2]
[404415318,1770120638439,-5408.27662586,0.0001197,2]
[404415320,1770120638448,-150.0,0.00012006,2]
[404415322,1770120638459,-420.0,0.00012006,2]
[404415324,1770120638468,-426.0,0.00012007,2]
[404415327,1770120638478,-1680.0,0.00012016,2]
[404415329,1770120638488,-159.0,0.0001205,2]
[404415331,1770120638497,-151.0,0.0001205,2]
[404415333,1770120638506,-205.2,0.00012183,2]
[404415334,1770120638516,-5408.27662586,0.00012318,2]
[404415337,1770120638525,-166.66,0.00012542,2]
[404415338,1770120638534,-500.0,0.00012592,2]
[404415340,1770120638544,-8671.74,0.00012592,2]
[404415343,1770120638554,-600.0,0.000126,4]
[404415344,1770120638563,-5408.27662586,0.00012667,2]
[404415347,1770120638573,-999.99,0.00012676,2]
[404415348,1770120638582,-299.99,0.00012676,2]
[404415351,1770120638592,-9999.99,0.00012676,2]
[404415353,1770120638601,-150.99,0.00012676,2]
[404415355,1770120638611,-9999.99,0.00012677,2]
[404415357,1770120638619,-150.99,0.00012677,2]
[404415359,1770120638629,-6484.12,0.00012677,2]
[404415360,1770120638638,-417.0,0.00012693,2]
[404415363,1770120638648,-1300.0,0.000127,4]
[404415365,1770120638658,-2000.0,0.000128,4]
[404415367,1770120638667,-2700.0,0.000129,4]
[404415369,1770120638677,-151.0,0.00012908,2]
[404415371,1770120638686,-947.40337248,0.0001291,2]
[404415372,1770120638696,-4122.6247,0.00012911,2]
[404415374,1770120638706,-89306.5331,0.00012911,2]
[404415377,1770120638716,-1000000.0,0.00012911,2]
[404415379,1770120638727,-1664.0421513,0.00012918,2]
[404415380,1770120638736,-166.66,0.00012956,2]
[404415382,1770120638746,-1000.0,0.00013,2]
[404415383,1770120638755,-2500.0,0.00013011,2]
[404415384,1770120638764,-51478.58099797,0.00013011,2]
[404415385,1770120638774,-5408.27662586,0.00013015,2]
[404415386,1770120638782,-2544.7096,0.00013056,2]
[404415387,1770120638792,-578.20924308,0.00013098,2]
[404415388,1770120638801,-174.61919141,0.00013098,2]
[404415389,1770120638811,-433.0,0.00013098,2]
[404415390,1770120638820,-209.40437684,0.00013103,2]
[404415391,1770120638829,-322.6107,0.00013103,2]
[404415393,1770120638839,-2091.44994307,0.00013156,2]
[404415395,1770120638848,-217.15233878,0.00013158,2]
[404415397,1770120638858,-180.0,0.00013194,2]
[404415399,1770120638868,-721.12765535,0.00013203,2]
[404415401,1770120638877,-500.0,0.00013203,2]
[404415403,1770120638887,-500.0,0.00013203,2]
[404415405,1770120638896,-500.0,0.00013203,2]
[404415407,1770120638905,-500.0,0.00013203,2]
[404415409,1770120638914,-500.0,0.00013203,2]
[404415411,1770120638924,-500.0,0.00013203,2]
[404415413,1770120638933,-500.0,0.00013203,2]
[404415415,1770120638943,-151.0,0.00013203,2]
[404415417,1770120638952,-500.0,0.00013203,2]
[404415419,1770120638962,-500.0,0.00013203,2]
[404415421,1770120638971,-151.0,0.00013203,2]
[404415423,1770120638980,-500.0,0.00013203,2]
[404415425,1770120638989,-500.0,0.00013203,2]
[404415427,1770120638999,-151.0,0.00013203,2]
[404415429,1770120639008,-500.0,0.00013203,2]
[404415431,1770120639017,-500.0,0.00013203,2]
[404415433,1770120639026,-151.0,0.00013203,2]
[404415435,1770120639035,-500.0,0.00013203,2]
[404415437,1770120639045,-500.0,0.00013203,2]
[404415439,1770120639055,-500.0,0.00013203,2]
[404415441,1770120639065,-500.0,0.00013203,2]
[404415443,1770120639075,-151.0,0.00013203,2]
[404415445,1770120639084,-500.0,0.00013203,2]
[404415447,1770120639093,-500.0,0.00013203,2]
[404415449,1770120639102,-151.0,0.00013203,2]
[404415452,1770120639119,-500.0,0.00013203,2]
[404415454,1770120639128,-151.0,0.00013203,2]
[404415456,1770120639137,-500.0,0.00013203,2]
[404415458,1770120639146,-151.0,0.00013203,2]
[404415460,1770120639162,-500.0,0.00013203,2]
[404415462,1770120639177,-151.0,0.00013203,2]
[404415464,1770120639189,-200.0,0.00013203,2]
[404415466,1770120639198,-151.0,0.00013203,2]
[404415468,1770120639207,-500.0,0.00013203,2]
[404415469,1770120639218,-151.0,0.00013203,2]
[404415471,1770120639228,-500.0,0.00013203,2]
[404415474,1770120639238,-500.0,0.00013203,2]
[404415476,1770120639247,-500.0,0.00013203,2]
[404415478,1770120639261,-500.0,0.00013203,2]
[404415480,1770120639270,-500.0,0.00013203,2]
[404415482,1770120639280,-500.0,0.00013203,2]
[404415484,1770120639289,-500.0,0.00013203,2]
[404415485,1770120639299,-500.0,0.00013203,2]
[404415487,1770120639310,-500.0,0.00013203,2]
[404415489,1770120639320,-500.0,0.00013203,2]
[404415492,1770120639330,-151.0,0.00013203,2]
[404415494,1770120639339,-151.0,0.00013203,2]
[404415496,1770120639349,-151.0,0.00013203,2]
[404415497,1770120639359,-151.0,0.00013203,2]
[404415500,1770120639370,-151.0,0.00013203,2]
[404415502,1770120639379,-151.0,0.00013203,2]
[404415503,1770120639389,-151.0,0.00013203,2]
[404415506,1770120639399,-151.0,0.00013203,2]
[404415508,1770120639409,-151.0,0.00013203,2]
[404415510,1770120639419,-151.0,0.00013203,2]
[404415512,1770120639428,-151.0,0.00013203,2]
[404415514,1770120639436,-151.0,0.00013203,2]
[404415516,1770120639446,-151.0,0.00013203,2]
[404415518,1770120639456,-151.0,0.00013203,2]
[404415520,1770120639465,-151.0,0.00013203,2]
[404415522,1770120639475,-151.0,0.00013203,2]
[404415523,1770120639485,-151.0,0.00013203,2]
[404415526,1770120639495,-151.0,0.00013203,2]
[404415528,1770120639504,-151.0,0.00013203,2]
[404415530,1770120639516,-151.0,0.00013203,2]
[404415532,1770120639527,-225.18697532,0.00013213,2]
[404415534,1770120639536,-2351.0,0.00013218,2]
[404415536,1770120639547,-250.0,0.00013245,2]
[404415538,1770120639558,-233.51889341,0.00013268,2]
[404415540,1770120639567,-15041.91,0.00013311,2]
[404415542,1770120639576,-242.15909246,0.00013323,2]
[404415544,1770120639585,-5408.27662586,0.00013363,2]
[404415546,1770120639594,-1600.0,0.0001337,2]
[404415548,1770120639603,-166.66,0.0001337,2]
[404415550,1770120639612,-251.11897888,0.00013378,2]
[404415552,1770120639621,-51478.58099788,0.00013381,2]
[404415554,1770120639630,-2736.91844375,0.00013412,2]
[404415556,1770120639639,-3240.0,0.00013425,2]
[404415558,1770120639649,-260.4103811,0.00013433,2]
[404415560,1770120639658,-270.0455652,0.00013488,2]
[404415562,1770120639667,-1000.0,0.000135,2]
[404415564,1770120639676,-155.0,0.00013511,2]
[404415566,1770120639685,-33292.3487,0.00013512,2]
[404415567,1770120639694,-1000.0,0.00013512,2]
[404415570,1770120639704,-10000.0,0.00013512,2]
[404415572,1770120639713,-280.03725112,0.00013543,2]
[404415574,1770120639722,-290.39862941,0.00013598,2]
[404415576,1770120639731,-181.08010149,0.00013646,2]
[404415578,1770120639740,-301.1433787,0.00013653,2]
[404415580,1770120639750,-500.0,0.00013698,2]
[404415581,1770120639759,-500.0,0.00013698,2]
[404415583,1770120639768,-500.0,0.00013698,2]
[404415586,1770120639778,-500.0,0.00013698,2]
[404415587,1770120639787,-500.0,0.00013698,2]
[404415615,1770120640019,-340.45778603,0.00013698,2]
[404415617,1770120640030,-509.06540724,0.00013698,2]
[404415618,1770120640039,-500.0,0.00013698,2]
[404415619,1770120640048,-500.0,0.00013698,2]
[404415620,1770120640056,-439.60873549,0.00013698,2]
[404415621,1770120640065,-500.0,0.00013698,2]
[404415622,1770120640075,-552.61203619,0.00013698,2]
[404415623,1770120640083,-500.0,0.00013698,2]
[404415624,1770120640092,-500.0,0.00013698,2]
[404415625,1770120640103,-500.0,0.00013698,2]
[404415626,1770120640113,-545.58231824,0.00013698,2]
[404415627,1770120640123,-500.0,0.00013698,2]
[404415628,1770120640132,-500.0,0.00013698,2]
[404415629,1770120640143,-500.0,0.00013698,2]
[404415630,1770120640152,-500.0,0.00013698,2]
[404415631,1770120640162,-500.0,0.00013698,2]
[404415632,1770120640172,-500.0,0.00013698,2]
[404415633,1770120640181,-500.0,0.00013698,2]
[404415634,1770120640190,-500.0,0.00013698,2]
[404415635,1770120640199,-371.76186134,0.00013698,2]
[404415636,1770120640208,-500.0,0.00013698,2]
[404415637,1770120640217,-500.0,0.00013698,2]
[404415638,1770120640226,-500.0,0.00013698,2]
[404415639,1770120640235,-438.97921379,0.00013698,2]
[404415640,1770120640244,-199.38200897,0.00013698,2]
[404415641,1770120640253,-452.02134495,0.00013698,2]
[404415642,1770120640263,-500.0,0.00013698,2]
[404415643,1770120640272,-500.0,0.00013698,2]
[404415644,1770120640281,-500.0,0.00013698,2]
[404415645,1770120640291,-500.0,0.00013698,2]
[404415646,1770120640299,-500.0,0.00013698,2]
[404415647,1770120640308,-500.0,0.00013698,2]
[404415648,1770120640317,-500.0,0.00013698,2]
[404415649,1770120640326,-500.0,0.00013698,2]
[404415650,1770120640335,-200.0,0.00013699,2]
[404415651,1770120640345,-500.0,0.000137,2]
[404415652,1770120640354,-500.0,0.000137,2]
[404415653,1770120640363,-260.20893212,0.000137,2]
[404415654,1770120640372,-500.0,0.000137,2]
[404415655,1770120640381,-500.0,0.000137,2]
[404415656,1770120640391,-500.0,0.000137,2]
[404415657,1770120640400,-5408.27662586,0.00013712,2]
[404415658,1770120640409,-51478.58099788,0.0001375,2]
[404415659,1770120640418,-200.0,0.00013751,2]
[404415660,1770120640427,-151.0,0.00013771,2]
[404415661,1770120640436,-151.0,0.00013771,2]
[404415662,1770120640445,-166.66,0.00013784,2]
[404415663,1770120640455,-1141.15042598,0.000139,2]
[404415664,1770120640464,-3011.51402891,0.000139,2]
[404415665,1770120640473,-5312.66771317,0.000139,2]
[404415666,1770120640483,-7947.43316911,0.000139,2]
[404415667,1770120640492,-3400.0,0.000139,5]
[404415668,1770120640501,-1664.0421513,0.00013914,2]
[404415669,1770120640511,-10000.02,0.00013953,2]
[404415670,1770120640520,-1852.42,0.0001398,2]
[404415671,1770120640529,-1000.0,0.00014,2]
[404415672,1770120640538,-5408.27662586,0.0001406,2]
[404415673,1770120640549,-51478.58099788,0.0001412,2]
[404415674,1770120640557,-2736.91844369,0.0001416,2]
[404415675,1770120640566,-187.78006525,0.00014194,2]
[404415676,1770120640576,-160.0,0.00014194,2]
[404415677,1770120640586,-166.66,0.00014198,2]
[404415678,1770120640595,-1000.0,0.00014248,2]
[404415679,1770120640604,-500.0,0.00014248,2]
[404415680,1770120640613,-1000.0,0.00014248,2]
[404415681,1770120640622,-200.0,0.00014299,2]
[404415682,1770120640631,-2091.44994305,0.00014342,2]
[404415683,1770120640641,-736.0,0.00014344,2]
[404415684,1770120640651,-178.31200744,0.00014413,2]
[404415685,1770120640659,-1223.52848545,0.00014413,2]
[404415686,1770120640668,-334.5472959,0.00014472,2]
[404415687,1770120640677,-51478.58099788,0.0001449,2]
[404415688,1770120640686,-3292.0,0.0001454,2]
[404415689,1770120640695,-500.0,0.00014548,2]
[404415690,1770120640704,-166.66,0.00014612,2]
[404415691,1770120640714,-500.0,0.00014685,2]
[404415692,1770120640723,-194.72792766,0.00014742,2]
[404415693,1770120640732,-495.7739334,0.00014796,2]
[404415694,1770120640741,-369.98194845,0.00014796,2]
[404415695,1770120640751,-200.0,0.00014847,2]
[404415696,1770120640760,-1600.0,0.00014855,2]
[404415697,1770120640769,-51478.58099788,0.00014859,2]
[404415698,1770120640779,-155.0,0.00014862,2]
[404415699,1770120640788,-10753.1523,0.000149,2]
[404415700,1770120640801,-2736.91844369,0.00014908,2]
[404415701,1770120640819,-1664.0421513,0.00014911,2]
[404415702,1770120640835,-154.75,0.00014961,2]
[404415703,1770120640845,-10000.0,0.00015,2]
[404415704,1770120640855,-150.0,0.00015123,7]